Cogmind - Beta 10.1 @@@ ROGUE MODE // 2020.10.23 @ 20:23:51 Player: ELF Result: Destroyed by G-34 Mercenary with Small Laser Performance ------------- Evolutions (0) 0 Regions Visited (2) 400 Robots Destroyed (6) 30 Value Destroyed (86) 86 Prototype IDs (0) 0 Alien Tech Used (0) 0 Bonus (0) 0 TOTAL SCORE: 516 Bonus ------- None Cogmind --------- Core Integrity 0/250 Matter 300/300 Energy 123/125 System Corruption 0% Temperature Cool (7) Movement Treading (160) Location -10/Mines Parts ------- > --- POWER (1) -------- Light Ion Engine > --- PROPULSION (2) --- Light Treads > --- UTILITY (2) ------ Small Storage Unit Medium Storage Unit > --- WEAPON (2) ------- (None) > --- INVENTORY (10) --- Compact Wheel Small Storage Unit Hacking Suite Peak State ------------ > --- POWER ------------ Ion Engine > --- PROPULSION ------- Compact Wheel Compact Wheel > --- UTILITY ---------- Small Storage Unit Medium Storage Unit > --- WEAPON ----------- EM Pulse Gun EM Pulse Gun > --- INVENTORY -------- Light Ion Engine Light Treads Light Treads Compact Wheel Small Storage Unit Medium Laser [Rating: 7] Favorites ----------- Power Light Ion Engine Engine Light Ion Engine Propulsion Light Treads Treads Light Treads Wheel Compact Wheel Utility Small Storage Unit Storage Small Storage Unit Weapon Light Assault Rifle Energy Gun EM Pulse Gun Ballistic Gun Light Assault Rifle Build | -11 -10 -10 ------- Run | Scr Mat Min Slots Evolved . | . . . Power . | . . . Propulsion . | . . . Utility . | . . . Weapon . | . . . Parts Attached 15 | 6 5 4 Power 2 | 1 . 1 Engine 2 | 1 . 1 Core . | . . . Reactor . | . . . Propulsion 4 | 2 2 . Treads 2 | . 2 . Leg . | . . . Wheel 2 | 2 . . Hover . | . . . Flight . | . . . Utility 3 | 2 1 . Device . | . . . Storage 3 | 2 1 . Processor . | . . . Hackware . | . . . Protection . | . . . Artifact . | . . . Weapon 6 | 1 2 3 Energy Gun 4 | 1 2 1 Energy Cannon . | . . . Ballistic Gun 2 | . . 2 Ballistic Cannon . | . . . Launcher . | . . . Special Weapon . | . . . Impact Weapon . | . . . Slashing Weapon . | . . . Piercing Weapon . | . . . Special Melee Weapon . | . . . Unidentified Prototypes . | . . . Parts Lost 10 | . 6 4 Power 1 | . 1 . Propulsion 3 | . 2 1 Utility . | . . . Weapon 6 | . 3 3 Highest Loss Streak 5 | . 5 2 Average Slot Usage (%) 89 | . 84 92 Engine 13 | . 12 13 Treads 18 | . 1 28 Wheel 9 | . 25 . Storage 28 | . 28 28 Energy Gun 7 | . 16 1 Ballistic Gun 12 | . . 19 Naked Turns . | . . . Heaviest Build 21 | 15 21 17 Greatest Support 40 | 32 40 40 Greatest Overweight (x) 3 | 1 3 . Average Overweight (x) . | . . . Largest Inventory Capacity 10 | 8 10 10 Average Capacity 9 | 6 9 10 Most Carried 7 | 6 7 4 Average Carried 4 | 4 5 3 Final Capacity 10 | 8 10 10 Final Carried 6 | 6 4 3 Class Distribution -------------------- 100% | Mutant Dominant Class ---------------- Mutant | -10/Materials Mutant | -10/Mines Resources | -11 -10 -10 ----------- Run | Scr Mat Min Matter Collected 314 | 248 27 39 Remotely . | . . . Salvage Created 162 | 57 64 41 Parts 12 | 4 3 5 Haulers Intercepted . | . . . Recyclers Shooed . | . . . Parts Field Recycled . | . . . Retrieved Matter . | . . . Parts Self-Destructed . | . . . Prevented . | . . . Kills | -11 -10 -10 ------- Run | Scr Mat Min Combat Hostiles Destroyed 4 | . 1 3 Melee 2 | . . 2 Guns 1 | . . 1 AOE 1 | . 1 . Classes Destroyed 4 | 1 2 1 Recycler 1 | 1 . . Operator 1 | . 1 . Swarmer 3 | . . 3 Grunt 1 | . 1 . Best Kill Streak 2 | 1 1 2 Combat Bots Only 2 | . 1 2 Max Kills in Single Turn 1 | 1 1 1 Gunslinging . | . . . Exploded 1 | . 1 . Melee 1 | . . 1 Uniques/NPCs Destroyed . | . . . Combat | -11 -10 -10 -------- Run | Scr Mat Min Damage Taken 1085 | . 468 617 Core 251 | . 118 133 Absorbed by Shields . | . . . Core Remaining (%) 100 | 100 . . Volleys Fired 33 | 1 19 13 Largest 2 | 1 2 1 Hottest 90 | 40 90 20 Shots Fired 40 | 1 26 13 Gun 40 | 1 26 13 Cannon . | . . . Launcher . | . . . Special . | . . . Kinetic 13 | . . 13 Thermal 7 | . 7 . Explosive . | . . . Electromagnetic 20 | 1 19 . Robot Hit Streak 8 | 1 8 6 Robot Miss Streak 5 | . 5 1 Penetration Max . | . . . Secondary Targets . | . . . Shots Hit Robots 28 | 1 17 10 Core Hits 11 | 1 4 6 Critical Hits . | . . . Critical Kills . | . . . Critical Parts Destroyed . | . . . Melee Attacks . | . . . Impact . | . . . Slashing . | . . . Piercing . | . . . Sneak Attacks . | . . . Combat Hostiles . | . . . Follow-up Attacks . | . . . Damage Inflicted 379 | 15 261 103 Guns 288 | 15 197 76 Cannons . | . . . Explosions 58 | . 58 . Melee . | . . . Ramming 33 | . 6 27 Kinetic 76 | . . 76 Thermal 71 | . 71 . Explosive . | . . . Electromagnetic 199 | 15 184 . Impact . | . . . Slashing . | . . . Piercing . | . . . Highest Corruption . | . . . Average Corruption . | . . . Corruption Purged . | . . . Overload Shots . | . . . Overflow Damage 7 | . 7 . Projectiles . | . . . Explosions 7 | . 7 . Melee . | . . . Knockbacks . | . . . Impact . | . . . Kinetic . | . . . Secondary . | . . . Self-Inflicted Damage 43 | . 43 . Shots 1 | . 1 . Rammed 17 | . 1 16 Targets Rammed 19 | . 1 18 Kicked . | . . . Crushed 2 | . . 2 Highest Temperature 170 | . 170 9 Average Temperature 67 | . 74 7 Received Heat Transfer 285 | . 51 234 Siege Activations . | . . . Robots Corrupted . | . . . Combat Hostiles . | . . . Parts Fried 1 | . 1 . Impact Corruptions . | . . . Robots Melted . | . . . Combat Hostiles . | . . . Parts Melted . | . . . Heat Transferred 137 | . 137 . Parts Sabotaged . | . . . Parts Stolen . | . . . Parts Stripped . | . . . Power Chain Reactions 1 | . 1 . Missiles Intercepted . | . . . Alert | -11 -10 -10 ------- Run | Scr Mat Min Peak Influence 70 | 5 33 70 Initial 3 | . 3 . Average 34 | 1 18 52 Maximum Alert Level . | . . . Low Security (%) 100 | 100 100 100 Level 1 . | . . . Level 2 . | . . . Level 3 . | . . . Level 4 . | . . . Level 5 . | . . . High Security . | . . . Max Security . | . . . Squads Dispatched 2 | . 2 . Investigation . | . . . Extermination . | . . . Reinforcement 2 | . 2 . Assault . | . . . Garrison . | . . . Intercept . | . . . Construction Impeded . | . . . Haulers Reinforced . | . . . Stealth | -11 -10 -10 --------- Run | Scr Mat Min Distress Signals . | . . . Communications Jammed . | . . . Distress Signals . | . . . Times Spotted 16 | . 9 7 Peak Tracking Total 3 | . 3 3 Tactical Retreats 2 | . 1 1 Traps | -11 -10 -10 ------- Run | Scr Mat Min Traps Triggered 1 | . 1 . Indirectly . | . . . Trap Hack Attempts . | . . . Triggered . | . . . Disarmed . | . . . Reprogrammed . | . . . Reused . | . . . Traps Extracted . | . . . Installed . | . . . Triggered . | . . . Machines | -11 -10 -10 ---------- Run | Scr Mat Min Machines Disabled . | . . . Max in Single Turn . | . . . Machines Sabotaged . | . . . Garrisons Compromised . | . . . Overloaded Fab Kills . | . . . Fab Network Shutdowns . | . . . Hacking | -11 -10 -10 --------- Run | Scr Mat Min Machines Accessed . | . . . Terminals . | . . . Fabricators . | . . . Repair Stations . | . . . Recycling Units . | . . . Scanalyzers . | . . . Garrison Access . | . . . Total Hacks . | . . . Successful . | . . . Failed . | . . . Catastrophic . | . . . Database Lockouts . | . . . Manual . | . . . Terminals . | . . . Fabricators . | . . . Repair Stations . | . . . Recycling Units . | . . . Scanalyzers . | . . . Garrison Access . | . . . Terminal Hacks . | . . . Fabricator Hacks . | . . . Repair Station Hacks . | . . . Recycling Unit Hacks . | . . . Scanalyzer . | . . . Garrison Access Hacks . | . . . Unauthorized Hacks . | . . . Terminals . | . . . Fabricators . | . . . Repair Stations . | . . . Recycling Units . | . . . Scanalyzers . | . . . Garrison Access . | . . . Data Cores Recovered . | . . . Used . | . . . Hacking Detections . | . . . Full Trace Events . | . . . Feedback Events . | . . . Feedback Blocked . | . . . Robot Schematics Acquired . | . . . Robots Built . | . . . Matter . | . . . Time . | . . . Total Robot Build Rating . | . . . Part Schematics Acquired . | . . . Parts Built . | . . . Matter . | . . . Time . | . . . Total Part Build Rating . | . . . Parts Repaired . | . . . Time . | . . . Parts Recycled . | . . . Recycled Matter . | . . . Retrieved Matter . | . . . Retrieved Components . | . . . Parts Scanalyzed . | . . . Part Schematics Acquired . | . . . Parts Damaged . | . . . Bothacking | -11 -10 -10 ------------ Run | Scr Mat Min Used RIF Installer . | . . . Robots Hacked . | . . . Non-combat . | . . . Combat . | . . . Robot Hacks Applied . | . . . Relay Couplers Released . | . . . Robots Rewired . | . . . Allies Hacked . | . . . Hacks Repelled . | . . . Allies | -11 -10 -10 -------- Run | Scr Mat Min Total Allies . | . . . Largest Group . | . . . Highest-Rated Group . | . . . Highest-Rated Ally . | . . . Total Orders . | . . . Ally Attacks . | . . . Total Damage . | . . . Kills . | . . . Allies Corrupted . | . . . Allies Melted . | . . . Intel | -11 -10 -10 ------- Run | Scr Mat Min Robot Analysis Total . | . . . Derelict Logs Recovered 1 | . . 1 Drone Launches . | . . . Drone Recoveries . | . . . Exploration | -11 -10 -10 ------------- Run | Scr Mat Min Turns Passed 657 | 96 195 366 Spaces Moved 391 | 77 122 192 Core 5 | 4 1 . Treads 198 | . 6 192 Legs . | . . . Wheels 188 | 73 115 . Hover . | . . . Flight . | . . . Fastest Speed 50 | 50 100 160 Average Speed 130 | 98 104 160 Slowest Speed 200 | 100 200 160 Overloaded Moves . | . . . Propulsion Burnouts . | . . . Robots Hopped . | . . . Cave-ins Triggered . | . . . Exploration Rate (%) 27 | 5 35 43 Regions Visited 2 Branch Regions 1 Pre-discovered Areas . | . . . Known Exits Taken . | . . . Unknown Exits Taken 2 | 1 1 . Scrap Searched 1 | . . 1 Spaces Dug . | . . . Terrain Destroyed 2 | . 2 . Melee . | . . . Projectile . | . . . AOE 2 | . 2 . Terrain Rammed . | . . . Walls Destroyed . | . . . Machines Disabled . | . . . Actions | -11 -10 -10 --------- Run | Scr Mat Min Total 484 | 92 163 229 Wait 21 | 3 16 2 Move 389 | 76 121 192 Hop . | . . . Pick Up 7 | 6 1 . Fast Attach 9 | 6 . 3 Attach 5 | . 4 1 Detach . | . . . Swap 1 | . 1 . Drop . | . . . Fire 33 | 1 19 13 Melee . | . . . Ram 1 | . 1 . Kick . | . . . Crush 18 | . . 18 Escape Stasis . | . . . Rewire . | . . . Trap . | . . . Miscellaneous . | . . . Route ------- -11/Scrapyard -10/Materials -10/Mines (discovered 1 exit: [*Mat]) History --------- Turn | Location | Event 14 | -11/Scrapyard | Discovered new exit (range 15) 97 | -11/Scrapyard | Entered Materials 271 | -10/Materials | Discovered new exit (range 14) 292 | -10/Materials | Entered Mines 309 | -10/Mines | Learned Materials non-interactive machine intel 310 | -10/Mines | Lost 5 parts (1p2n2w) 328 | -10/Mines | Build established: Mutant 341 | -10/Mines | Core integrity fell below 50% 406 | -10/Mines | Discovered new exit (range 11) 647 | -10/Mines | Core integrity fell below 20% 658 | -10/Mines | Destroyed by G-34 Mercenary with Small Laser Last Messages --------------- 00351_ Crushed S-10 Pest. 00351_ S-10 Pest destroyed. 00354_ Acquired Lgt. Assault Rifle. 00356_ Acquired 6 matter. 00357_ Acquired 4 matter. 00372_ Slammed into S-10 Pest. 00382_ Crushed S-10 Pest. 00382_ S-10 Pest destroyed. 00384_ Acquired 1 matter. 00385_ S-10 Pest destroyed. 00386_ Acquired 1 matter. 00395_ Acquired Lgt. Assault Rifle. 00396_ Acquired 4 matter. 00406_ EXIT=FOUND 00492_ K-01 Serf collects debris. 00599_ Lgt. Assault Rifle destroyed. 00639_ Slammed into G-47 Trooper. 00649_ K-01 Serf collects debris. 00655_ Lgt. Assault Rifle destroyed. 00656_ Lgt. Treads destroyed. Map ----- +----------------------------------------------------+ | ????????? ##??????????? | | ????????????????### ### ###????????? | | ??????????????????????## ##???????? | | ???????????????????????##### ##??????? | | ???????????????????????????# ##?????? | | ???????????????????????????# # #?????? | | ???????????????????????????# ## ##????? | | ???????????????????????????# ## #????? | | ???????????????????????????# ### #????? | | ???????????????????????????# #??# #????? | | ???????????????????????????# #???###????? | | ???????????????????????????# #??????????? | | ???????????????????????????# #??????????? | | ???????????????????????????# #??????????? | | ???????????????????????????# #??????????? | | ???????????????????????????# #??????????? | | ????????????????????????#### ########???? | | ????????????????????????# #???? | | ???????????????????????# ##### #???? | | ??????????????????????# t ##???# #???? | | ??????????????????????# ##????# ##??? | | ??????????????????????## ######## ##?? | | ???????????????????????## #?## ## #?? | | ????????????????????????# #?## #?? | | ?????????????????????# ## ### % g #?? | | ?????????????????????# @ g%% ##?? | | ?????????????????????## #### % ######??? | | ??????????????????????#????# ##???????? | | ???????????????????????????# ##????????? | | ??????????????????????????# ##?????????? | | ?????????????????????????# ##??????????? | | ????????????????????????# ##???????????? | | ????????????????????????# ?????????????? | | ????????????????????????## #?????????????? | | ?????????????????????????##??????????????? | | ?????????????????????????????????????????? | | ?????????????????????????????????????????? | | ?????????????????????????????????????????? | | ?????????????????????????????????????????? | | | | | | | | | | | | | | | | | | | | | | | +----------------------------------------------------+ Best States ------------- Heat Dissipation 25 Energy Generation 10 Energy Capacity 250 Matter Stores 300 Matter Capacity 300 Sight Range 16 Terrain Scan Density 10 Evasion (%) 40 Recoil Reduction 2 Item Schematics ----------------- None Robot Schematics ------------------ None Fabricated ------------ Nothing Alien Tech Used ----------------- None Achievements -------------- None Challenges ------------ None Game ------ Seed VortexCoordinationMembrane Manual? 0 Play Time 00:05:43 Cumulative 57.1 hours Start 2020.10.23 @ 20:19:08 End 2020.10.23 @ 20:23:51 Sessions 1 Manual Loads 0 Difficulty Rogue Special Mode None Game No. 44 Rogue 44 Adventurer 0 Explorer 0 Win Type - Total 0 Types 0/0/0/0/0/0/0/0/0 Lore% 43 Gallery% 51 Achievement% 44 Wizard Run 0 Options --------- ASCII 0 Keyboard 0 Movement Numpad Keybinds 0 Fullscreen 2 Font 18/SmallcapsGlow Map View 76x50 Tactical HUD 1 Map Filters NONE Filters NONE Steam 1 RUN: 064e55fb-ac4d-4d90-b952-8cc98c9694df